bitfinex/quotes_ETHUSD_20250107
["timestamp","ask_amount","ask_price","bid_price","bid_amount"]
[1736246409572,1e-08,3663.8,3663.7,8.28512516]
[1736246409963,1e-08,3663.8,3663.7,18.88217032]
[1736246411240,1e-08,3663.8,3663.7,20.88217032]
[1736246411794,1e-08,3663.8,3663.7,23.97242479]
[1736246412300,1e-08,3663.8,3663.7,20.92934959]
[1736246412718,1e-08,3663.8,3663.7,22.11139475]
[1736246413409,1e-08,3663.8,3663.7,24.96167412]
[1736246414761,1e-08,3663.8,3663.7,22.11139475]
[1736246417148,1e-08,3663.8,3663.7,24.96167412]
[1736246419998,1e-08,3663.8,3663.7,25.74977412]
[1736246427212,0.0573332,3664.9,3664.8,3.91070516]
[1736246427435,0.0573332,3664.9,3664.8,7.46070516]
[1736246429977,0.0573332,3664.9,3664.8,7.47570516]
[1736246430193,0.0573332,3664.9,3664.8,12.38467032]
[1736246430384,0.0573332,3664.9,3664.8,11.20262516]
[1736246430583,0.0573332,3664.9,3664.8,12.38467032]
[1736246431184,0.0573332,3664.9,3664.8,11.20262516]
[1736246431383,0.0573332,3664.9,3664.8,12.38467032]
[1736246431596,0.0573332,3664.9,3664.8,12.9280302]
[1736246432566,0.0573332,3664.9,3664.8,15.95822756]
[1736246432770,0.0573332,3664.9,3664.8,17.72027181]
[1736246433809,0.0573332,3664.9,3664.8,8.06426149]
[1736246434181,0.8668332,3664.9,3664.8,3.08357744]
[1736246434788,0.8668332,3664.9,3664.8,6.08357744]
[1736246435288,0.8668332,3664.9,3664.8,6.63357744]
[1736246435821,0.8668332,3664.9,3664.8,3.55]
[1736246436723,0.8668332,3664.9,3664.8,0.55]
[1736246438396,0.8668332,3664.9,3664.7,2.72873]
[1736246438574,0.8668332,3664.9,3664.5,3.54049186]
[1736246440007,0.8668332,3664.9,3664.6,0.55]
[1736246440205,0.8668332,3664.9,3664.5,0.54049186]
[1736246440502,0.8668332,3664.9,3664.4,1.1394548]
[1736246441516,0.8668332,3664.9,3664.4,0.02728634]
[1736246442615,0.8668332,3664.9,3664.4,2.75622634]
[1736246444627,0.8668332,3664.9,3664.4,4.08131458]
[1736246446522,0.8668332,3664.9,3664.4,1.35237458]
[1736246448931,0.8668332,3664.9,3664.4,2.49182938]
[1736246449593,0.8668332,3664.9,3664.5,0.55]
[1736246449786,0.8668332,3664.9,3664.6,0.02728383]
[1736246450201,0.8668332,3664.9,3664.5,0.55]
[1736246450407,0.8668332,3664.9,3664.4,2.46454304]
[1736246450729,0.8668332,3664.9,3664.4,5.19342304]
[1736246451129,0.8668332,3664.9,3664.6,1.1394548]
[1736246451328,0.8668332,3664.9,3664.6,1.1667399]
[1736246452238,0.8668332,3664.9,3664.6,1.1394548]
[1736246452530,0.8668332,3664.9,3664.5,1.1394548]
[1736246454835,0.8668332,3664.9,3664.6,0.02728512]
[1736246455536,0.8668332,3664.9,3664.5,1.1394548]
[1736246455849,0.8668332,3664.9,3664.6,0.0272851]
[1736246457550,0.8668332,3664.9,3664.6,1.1667399]
[1736246458446,0.8668332,3664.9,3664.8,1.72963129]
[1736246458747,0.0573332,3664.9,3664.8,7.48557436]
[1736246458947,0.0573332,3664.9,3664.8,7.45829129]
[1736246459296,0.0573332,3664.9,3664.8,6.27866]
[1736246460621,0.0573332,3664.9,3664.8,9.31293044]
[1736246462052,0.0573332,3664.9,3664.8,8.41434824]
[1736246463153,0.0573332,3664.9,3664.8,10.69256714]
[1736246463952,0.0573332,3664.9,3664.8,10.70756714]
[1736246465509,0.7764,3666.1,3665.8,2.72789]
[1736246465708,0.7764,3666.1,3666.0,5.72776]
[1736246466153,0.7764,3666.1,3665.9,0.55]
[1736246466452,0.7764,3666.1,3665.0,14.74165661]
[1736246466453,0.7764,3666.1,3665.0,7.76]
[1736246466617,0.7764,3666.1,3664.8,4.17286187]
[1736246466816,0.8082,3666.0,3664.8,4.17286187]
[1736246467020,0.8082,3666.0,3665.9,1.71246966]
[1736246467410,3.53596,3666.0,3665.9,1.71246966]
[1736246467755,3.54346,3666.0,3665.8,2.28329288]
[1736246467960,6.14922661,3665.9,3665.8,2.28329288]
[1736246468255,7.09884734,3665.9,3665.8,2.28329288]
[1736246468564,0.8082,3665.8,3665.0,1.14233025]
[1736246468758,2.72812,3665.6,3665.0,1.14233025]
[1736246468957,0.8082,3665.8,3665.0,1.14233025]
[1736246469344,0.7991,3665.5,3665.0,1.14233025]
[1736246469653,0.7991,3665.3,3665.0,1.14233025]
[1736246469859,0.7991,3665.3,3664.5,3.0]
[1736246470058,0.7991,3665.3,3664.5,3.02728597]
[1736246470429,0.7991,3665.3,3664.8,2.72866]
[1736246471958,0.7991,3665.3,3664.8,2.75594337]
[1736246472463,0.7991,3665.3,3664.8,2.72866]
[1736246472649,0.7991,3665.3,3664.8,2.75594338]
[1736246472965,0.7991,3665.3,3665.0,2.7285]
[1736246473127,0.7991,3665.3,3665.1,2.72841]
[1736246473522,0.7991,3665.3,3664.8,0.02728338]
[1736246473523,0.8102,3665.9,3665.2,2.72831]
[1736246473827,0.8102,3665.9,3665.5,2.7281]
[1736246476370,0.8102,3665.9,3665.3,3.27827]
[1736246479868,0.8102,3665.9,3665.5,2.72812]
[1736246481039,0.8102,3665.9,3665.5,2.75539843]
[1736246481238,0.8102,3665.9,3665.5,0.02727843]
[1736246481558,0.8102,3665.9,3665.3,5.16341015]
[1736246482378,0.8102,3665.9,3665.3,2.72825]
[1736246483287,0.8102,3665.9,3665.4,0.02727844]
[1736246484588,0.8102,3665.9,3665.4,2.75547844]
[1736246486350,0.8102,3665.9,3665.4,2.7282]
[1736246486542,0.8102,3665.9,3665.5,0.02727846]
[1736246488184,0.8102,3665.9,3665.5,2.75534846]
[1736246488388,0.7957,3666.5,3665.8,2.72785]
[1736246488552,0.7957,3666.5,3665.9,0.55]
[1736246489495,0.7957,3666.5,3665.6,0.55]
[1736246489815,0.7957,3666.5,3665.9,2.72778]
[1736246490155,1.05175154,3666.5,3665.9,2.72778]
[1736246490482,0.7569,3666.4,3665.9,2.72778]
[1736246491667,0.7569,3666.4,3665.7,1.14233025]
[1736246491989,0.7569,3666.4,3665.7,1.29252161]
[1736246493502,0.7569,3666.4,3665.6,2.72805]
[1736246493801,0.8112,3666.2,3665.6,2.72805]
[1736246495473,0.8112,3666.2,3665.4,2.72818]
[1736246495772,0.8112,3666.2,3665.5,2.72813]
[1736246497585,0.8112,3666.2,3665.5,0.02727795]
[1736246497771,0.8112,3666.2,3665.6,2.72805]
[1736246500920,0.7708,3666.1,3665.5,1.29269535]
[1736246501090,0.7708,3666.1,3665.5,4.02082535]
[1736246502289,0.7708,3666.1,3665.5,2.72813]
[1736246508318,0.7708,3666.1,3665.4,1.14233025]
[1736246508617,0.7708,3666.1,3665.4,3.87051025]
[1736246509820,0.7708,3666.1,3665.4,1.14233025]
[1736246510014,0.7708,3666.1,3665.5,2.72811]
[1736246512914,0.7708,3666.1,3665.5,4.02080535]
[1736246516314,0.7708,3666.1,3665.5,1.29269535]
[1736246516673,0.7708,3666.1,3665.7,1.17911647]
[1736246518349,0.7616,3666.4,3665.7,1.29269535]
[1736246518515,0.65945202,3666.3,3665.7,1.29269535]
[1736246518723,0.7616,3666.2,3665.7,1.29269535]
[1736246519112,0.7616,3666.2,3665.7,2.47181182]
[1736246519319,0.7616,3666.2,3665.9,2.7278]
[1736246519513,1.70817781,3666.2,3665.9,2.7278]
[1736246519914,0.94657781,3666.2,3665.9,3.90691647]
[1736246520454,0.94657781,3666.2,3666.0,2.72775]
[1736246521256,1.13981544,3666.7,3666.0,5.1627756]
[1736246521455,1.13981544,3666.7,3666.5,2.72739]
[1736246522117,1.13981544,3666.7,3666.0,5.1627756]
[1736246522317,1.13981544,3666.7,3666.3,2.72751]
[1736246522655,0.7685,3666.9,3666.4,2.4350256]
[1736246523038,0.7685,3666.9,3666.4,5.1624556]
[1736246523237,0.7685,3666.9,3666.4,2.4350256]
[1736246523992,0.7685,3666.9,3666.3,1.14233025]
[1736246524148,0.8188,3666.7,3666.3,1.14233025]
[1736246525588,0.8188,3666.7,3666.1,2.4350256]
[1736246526447,0.8188,3666.7,3666.0,2.47181182]
[1736246526760,0.19083154,3666.8,3666.0,3.29461182]
[1736246526972,0.8179,3666.7,3666.0,2.47181182]
[1736246527169,1.47643802,3666.7,3666.0,2.47181182]
[1736246527683,0.65853802,3666.7,3666.0,3.61414207]
[1736246528063,0.65853802,3666.7,3666.0,6.34190207]
[1736246528262,0.7576,3666.6,3666.0,6.34190207]
[1736246528888,0.65853802,3666.7,3666.0,6.34190207]
[1736246529217,0.7754,3666.7,3666.0,6.34190207]
[1736246529702,0.7754,3666.7,3666.0,3.61414207]
[1736246530075,0.7754,3666.7,3666.1,1.29269535]
[1736246530960,0.19083154,3666.8,3666.1,2.10549535]
[1736246531307,0.807,3666.7,3666.1,2.10549535]
[1736246531510,0.807,3666.7,3666.0,5.04919672]
[1736246531511,0.94591857,3666.6,3666.0,3.90686647]
[1736246533173,1.0207647,3666.7,3666.1,1.29269535]
[1736246533888,1.0158647,3666.7,3666.1,1.29269535]
[1736246536746,1.97681647,3666.2,3666.1,1.29269535]
[1736246537019,4.70442647,3666.2,3666.1,1.29269535]
[1736246537184,5.56551976,3666.2,3666.1,1.29269535]
[1736246537792,0.7966,3665.6,3665.5,0.2488]
[1736246537998,1.97571647,3665.6,3665.5,0.2488]
[1736246538840,4.70377647,3665.6,3665.5,0.2488]
[1736246539533,5.8886111,3665.6,3665.5,0.2488]
[1736246539720,6.64844453,3665.6,3665.5,0.2488]
[1736246540918,7.79083534,3665.6,3665.5,0.2488]
[1736246543251,7.79083534,3665.6,3664.2,6.545]
[1736246543252,0.7926,3665.5,3664.3,2.72903]
[1736246543453,0.7926,3665.5,3664.4,2.7562059]
[1736246543454,3.52081,3665.5,3664.4,2.7562059]
[1736246543658,3.52081,3665.5,3664.4,2.72892]
[1736246544349,0.7926,3665.5,3664.6,0.7758]
[1736246544545,0.7926,3665.5,3664.8,2.72864]
[1736246544709,0.7926,3665.5,3664.9,0.02728307]
[1736246545740,0.7926,3665.5,3664.7,2.72871]
[1736246547365,0.7926,3665.5,3664.6,0.7758]
[1736246547579,0.7926,3665.5,3664.8,2.72865]
[1736246548169,0.7926,3665.5,3664.9,0.02728306]
[1736246548873,0.7926,3665.5,3664.8,2.72865]
[1736246549080,0.7926,3665.5,3664.6,0.7758]
[1736246549252,0.7926,3665.5,3664.7,2.75600307]
[1736246550553,0.7926,3665.5,3664.7,2.72872]
[1736246550750,3.872817,3665.5,3664.6,0.7758]
[1736246552783,0.7602,3665.4,3664.5,2.72886]
[1736246552982,0.7602,3665.4,3664.6,0.02728478]
[1736246553182,0.7602,3665.4,3664.6,2.72879]
[1736246555917,0.7602,3665.4,3664.7,2.75595478]
[1736246556428,0.7602,3665.4,3664.9,2.72857]
[1736246556624,0.7602,3665.4,3664.9,3.52307]
[1736246558108,0.7602,3665.4,3664.6,0.8049]
[1736246558306,0.7602,3665.4,3664.7,3.30209153]
[1736246559307,0.7602,3665.4,3664.7,2.75598292]
[1736246562949,0.7602,3665.4,3664.8,2.72866]
[1736246563121,0.7602,3665.4,3664.9,0.02728294]
[1736246564540,0.7602,3665.4,3664.9,2.75580294]
[1736246567654,0.7602,3665.4,3665.1,2.72842]
[1736246568533,0.7602,3665.4,3664.6,1.34948012]
[1736246568736,0.7602,3665.4,3664.7,2.72869]
[1736246568938,0.7602,3665.4,3664.7,2.75597295]
[1736246569114,0.7602,3665.4,3664.7,2.72869]
[1736246570152,0.7602,3665.4,3664.6,1.34948012]
[1736246570456,0.7602,3665.4,3664.8,2.75593294]
[1736246575754,0.7602,3665.4,3664.6,3.27336012]
[1736246576060,0.7975,3665.3,3664.5,2.72885]
[1736246577229,0.7975,3665.3,3664.6,2.75607484]
[1736246577434,1.17974334,3665.2,3664.6,2.75607484]
[1736246578646,1.17974334,3665.0,3664.4,3.26197601]
[1736246578880,0.7975,3664.9,3664.4,3.26197601]
[1736246579661,0.7975,3664.9,3664.4,0.53305601]
[1736246579957,0.7975,3664.9,3664.5,2.72885]
[1736246582273,0.7975,3664.9,3664.6,0.02728515]
[1736246583570,0.7975,3664.9,3664.4,1.67538626]
[1736246584372,0.7975,3664.9,3664.5,1.14233025]
[1736246585544,1.17974334,3664.8,3664.5,1.14233025]
[1736246585755,0.753,3664.7,3664.5,1.14233025]
[1736246586460,0.753,3664.7,3664.0,2.84777363]
[1736246586461,0.753,3664.7,3664.4,1.14233025]
[1736246587746,0.753,3664.7,3664.1,4.14233025]
[1736246589075,0.753,3664.7,3664.0,4.14233025]
[1736246589270,0.753,3664.7,3664.0,1.14233025]
[1736246590679,0.753,3664.7,3663.9,4.6994038]
[1736246591411,1.17974334,3664.6,3663.9,4.72669159]
[1736246594365,1.17974334,3664.6,3663.9,3.58436134]
[1736246595383,0.758,3664.6,3663.9,3.58436134]
[1736246598593,1.93774334,3664.6,3663.9,3.58436134]
[1736246598923,1.93774334,3664.6,3663.9,0.58436134]
[1736246599093,2.43556863,3664.6,3663.9,0.58436134]
[1736246599893,0.758,3664.6,3663.9,0.58436134]
[1736246601604,0.758,3664.6,3663.9,0.55707355]
[1736246601891,0.758,3664.6,3664.0,0.02728841]
[1736246603101,0.758,3664.6,3663.9,0.55707355]
[1736246609209,0.758,3664.6,3664.0,0.02728847]
[1736246609508,0.7546,3664.9,3664.3,0.8211]
[1736246609662,0.7546,3664.9,3664.4,0.02728534]
[1736246611640,0.7546,3664.9,3664.3,0.8211]
[1736246612221,0.7546,3664.9,3664.3,0.55]
[1736246612428,1.93434334,3664.9,3664.3,0.55]
[1736246613316,1.93434334,3664.9,3664.2,0.55]
[1736246613519,0.7546,3664.9,3664.2,0.55]
[1736246614423,0.7546,3664.9,3664.1,1.14233025]
[1736246616040,0.7546,3664.9,3664.2,0.02728684]
[1736246619433,0.7546,3664.9,3664.2,1.16961709]
[1736246620396,0.7546,3664.9,3664.2,1.14233025]
[1736246622433,0.7546,3664.9,3664.1,1.14233025]
[1736246623199,0.7546,3664.9,3664.2,1.14233025]
[1736246625139,0.7546,3664.9,3664.3,0.0272869]
[1736246625444,0.7546,3664.9,3664.2,1.14233025]
[1736246626365,3.98367934,3665.1,3664.2,1.14233025]
[1736246626501,0.56934025,3665.0,3664.2,1.14233025]
[1736246627161,3.29787025,3665.0,3664.2,1.14233025]
[1736246627448,1.17974334,3664.7,3664.2,1.14233025]
[1736246627824,1.17974334,3664.5,3664.2,1.14233025]
[1736246628205,1.17974334,3664.5,3664.1,1.14233025]
[1736246629645,0.8237,3664.2,3664.1,1.14233025]
[1736246630018,0.8237,3664.2,3663.7,4.14233025]
[1736246631134,0.8237,3664.2,3663.6,1.14233025]
[1736246631641,0.7844,3664.1,3663.6,1.14233025]
[1736246632042,0.77448,3664.1,3663.6,1.14233025]
[1736246632605,0.77448,3664.1,3663.5,5.86984153]
[1736246636262,0.77448,3664.1,3663.7,1.17974334]
[1736246636429,1.70972317,3664.7,3663.9,1.17974334]
[1736246636629,0.775,3664.6,3663.9,1.17974334]
[1736246637659,1.91784166,3664.6,3663.9,1.17974334]
[1736246638579,1.91784166,3664.6,3663.9,3.90901334]
[1736246638877,0.775,3664.6,3663.9,5.80204359]
[1736246639778,0.775,3664.6,3664.1,2.72917]
[1736246644005,0.775,3664.6,3664.1,1.17974334]
[1736246644167,0.7928,3664.9,3664.2,0.02729086]
[1736246644471,0.7928,3664.9,3664.6,2.72876]
[1736246645261,0.7928,3664.9,3664.7,2.72873]
[1736246649093,0.7928,3664.9,3664.5,3.90859334]
[1736246649251,0.7928,3664.9,3664.6,2.72873]
[1736246649666,0.7928,3664.9,3664.5,1.17974334]
[1736246649667,0.7928,3664.9,3664.7,2.72871]
[1736246650366,0.7928,3664.9,3664.8,2.72866]
[1736246651581,0.7966,3665.3,3664.8,2.72866]
[1736246653190,0.7966,3665.3,3665.0,2.72845]
[1736246653490,0.7966,3665.3,3665.1,2.72839]
[1736246653874,0.7966,3665.3,3664.7,1.17974334]
[1736246654083,0.7966,3665.3,3665.0,2.72848]
[1736246659364,0.7966,3665.3,3665.1,2.72843]
[1736246661195,0.7966,3665.3,3664.9,2.72858]
[1736246661367,0.99423433,3665.3,3664.8,2.72866]
[1736246661959,0.99423433,3665.3,3664.9,2.72858]
[1736246662359,0.99423433,3665.3,3664.5,2.32207359]
[1736246662594,0.7966,3665.3,3665.0,2.72848]
[1736246664579,0.7966,3665.3,3664.9,2.72857]
[1736246673021,0.7966,3665.3,3664.7,2.72871]
[1736246673168,0.7966,3665.3,3664.5,2.72885]
[1736246674722,0.7966,3665.3,3664.6,2.72878]
[1736246674884,0.19763433,3665.2,3664.6,2.72878]
[1736246675209,0.8124,3665.1,3664.6,2.72878]
[1736246679503,0.8124,3665.1,3664.2,3.87142025]
[1736246679675,0.8124,3665.1,3664.2,2.87531885]
[1736246681278,0.8124,3665.1,3664.2,2.72909]
[1736246681536,0.60609793,3665.0,3664.3,2.72903]
[1736246682799,0.60609793,3665.0,3664.4,2.72894]
[1736246683005,0.8124,3665.1,3664.4,2.72894]
[1736246684283,0.8124,3665.1,3664.5,2.72887]
[1736246693162,0.8124,3665.1,3664.5,3.87298823]
[1736246696066,0.8124,3665.1,3664.5,1.14411823]
[1736246696241,0.8124,3665.1,3664.6,3.90855334]
[1736246697232,1.00792417,3665.1,3664.5,1.14411823]
[1736246697565,0.8124,3665.1,3664.5,1.14411823]
[1736246698246,0.8124,3665.1,3664.4,1.14411823]
[1736246698458,0.8057,3665.0,3664.4,1.14411823]
[1736246698642,0.8057,3664.9,3664.4,1.14411823]
[1736246698842,2.322585,3665.2,3664.4,1.14411823]
[1736246698843,2.72875,3664.7,3664.4,1.14411823]
[1736246699172,1.078575,3664.6,3664.4,1.14411823]
[1736246699860,1.078575,3664.6,3664.1,1.14411823]
[1736246700457,0.822,3664.5,3664.1,1.14411823]
[1736246700659,4.73077334,3664.4,3664.1,1.14411823]
[1736246700858,0.822,3664.3,3664.1,1.14411823]
[1736246701062,0.47307733,3664.2,3664.1,1.14411823]
[1736246701268,1.29507733,3664.2,3664.1,1.14411823]
[1736246701559,1.29507733,3664.2,3663.9,1.14411823]
[1736246702149,0.822,3664.1,3663.9,1.14411823]
[1736246702676,0.822,3664.1,3663.4,1.14411823]
[1736246702677,0.822,3664.0,3663.4,1.14411823]
[1736246702909,0.822,3663.9,3663.4,1.14411823]
[1736246703778,0.822,3663.9,3663.0,1.17974334]
[1736246704559,3.55134,3663.9,3663.0,1.17974334]
[1736246704863,3.55134,3663.9,3662.9,5.22639157]
[1736246705215,3.55134,3663.9,3663.0,1.17974334]
[1736246705216,0.7724,3663.8,3663.0,1.17974334]
[1736246707701,3.50187,3663.8,3663.0,1.17974334]
[1736246707903,0.807,3663.6,3662.6,1.3526]
[1736246708044,0.807,3663.6,3662.6,5.27188213]
[1736246708247,0.7512,3663.5,3662.6,4.71257334]
[1736246708501,2.72963,3663.5,3662.6,1.17974334]
[1736246708675,3.48095,3663.4,3662.5,1.6899372]
[1736246709000,0.7512,3663.3,3662.5,0.54581897]
[1736246711548,0.7512,3663.3,3662.6,1.17974334]
[1736246713420,0.7512,3663.3,3662.5,3.30347956]
[1736246715618,0.7512,3663.3,3662.6,2.73022]
[1736246716442,0.7512,3663.3,3662.5,0.54581897]
[1736246716737,0.7512,3663.3,3662.4,6.54283]
[1736246716914,0.7721,3663.2,3662.4,3.54283]
[1736246717122,0.7721,3663.2,3662.4,2.73043]
[1736246717811,0.7721,3663.2,3662.4,3.28795344]
[1736246719342,0.8134,3663.0,3662.2,2.75784038]
[1736246721136,0.81011525,3663.0,3662.3,3.28356446]
[1736246721966,0.81011525,3663.0,3662.2,0.02730038]
[1736246722523,0.81011525,3663.0,3662.2,2.75788038]
[1736246723156,0.81011525,3663.0,3662.2,3.31038013]
[1736246724164,1.19892098,3663.0,3662.2,3.31038013]
[1736246724726,0.81011525,3663.0,3662.3,2.7305]
[1736246724969,0.81011525,3663.0,3662.5,2.7303]
[1736246727620,0.81011525,3663.0,3662.5,0.8128]
[1736246727775,0.8045,3663.7,3662.7,2.73016]
[1736246729287,2.72957,3663.6,3662.7,2.73016]
[1736246729495,0.8045,3663.4,3662.5,3.54314]
[1736246731552,0.7962,3663.3,3662.3,2.7305]
[1736246732359,2.72985,3663.3,3662.3,2.7305]
[1736246732553,0.8054,3663.2,3662.3,2.7305]
[1736246733897,0.8054,3663.2,3662.2,0.55249975]
[1736246734062,0.753,3663.1,3662.2,0.55249975]
[1736246734289,0.753,3663.1,3662.2,2.73057]
[1736246734700,1.10129,3663.1,3662.2,2.73057]
[1736246734892,0.7857,3663.0,3662.2,2.73057]
[1736246735429,0.7857,3663.0,3662.3,1.18109361]
[1736246735727,0.7857,3663.0,3662.5,1.18109361]
[1736246736723,0.56254181,3663.9,3662.5,1.18109361]
[1736246736724,0.8062,3663.5,3662.9,1.18109361]
[1736246736926,0.8062,3663.5,3662.7,1.18109361]
[1736246737229,0.789,3663.4,3662.7,1.18109361]
[1736246740199,0.7825,3663.3,3662.5,1.18109361]
[1736246741841,0.7825,3663.3,3662.5,3.91145361]
[1736246742019,0.7825,3663.3,3662.6,0.02729945]
[1736246743016,0.7825,3663.3,3662.6,2.73028]
[1736246743219,0.7825,3663.3,3662.6,2.75757945]
[1736246744543,0.7825,3663.3,3662.7,1.18109361]
[1736246747903,0.7825,3663.3,3662.5,2.32521184]
[1736246748105,0.8161,3663.1,3662.5,1.14411823]
[1736246749758,0.94709954,3663.0,3662.3,2.32521184]
[1736246750061,0.94709954,3663.0,3662.3,2.352514]
[1736246750668,0.8161,3663.1,3662.3,2.352514]
[1736246751467,0.8161,3663.1,3662.4,1.18109361]
[1736246751882,1.95894166,3663.1,3662.4,1.18109361]
[1736246753398,2.36860047,3663.0,3662.4,1.18109361]
[1736246754586,0.94744019,3662.9,3662.4,2.32521184]
[1736246755498,1.14284166,3663.0,3662.4,2.32521184]
[1736246756200,1.14284166,3663.0,3662.6,1.18109361]
[1736246756924,0.8161,3663.1,3662.6,1.18109361]
[1736246761007,0.9475451,3663.0,3662.4,2.32521184]
[1736246761772,3.51176116,3663.0,3662.4,1.18109361]
[1736246763285,0.9475451,3662.9,3662.4,2.32521184]
[1736246763500,0.9475451,3662.9,3662.6,1.18109361]
[1736246764582,0.8161,3663.1,3662.6,1.18109361]
[1736246765491,0.94752446,3663.0,3662.6,1.18109361]
[1736246766823,0.8161,3663.1,3662.6,1.18109361]
[1736246766977,0.8161,3663.1,3662.6,1.20839375]
[1736246768988,0.8161,3663.1,3662.5,1.14411823]
[1736246769214,0.8161,3663.1,3662.6,1.14411823]
[1736246770362,0.8266,3663.0,3662.6,1.14411823]
[1736246770855,0.8238,3662.9,3662.4,1.14411823]
[1736246771704,0.8238,3662.9,3662.4,1.18109361]
[1736246772399,0.8238,3662.9,3662.6,1.18109361]
[1736246773631,0.8238,3662.9,3662.5,1.14411823]
[1736246776940,0.8238,3662.9,3662.4,1.14411823]
[1736246778341,0.8156,3662.8,3662.4,1.14411823]
[1736246778544,0.8156,3662.8,3662.3,1.14411823]
[1736246779926,0.94757914,3662.7,3662.2,1.14411823]
[1736246781211,1.95844166,3662.8,3662.1,1.14411823]
[1736246782540,0.8156,3662.8,3662.1,1.14411823]
[1736246784015,0.9473571,3662.7,3662.2,1.18109361]
[1736246784216,0.9473571,3662.7,3662.2,3.91168361]
[1736246785549,0.8156,3662.8,3662.2,3.91168361]
[1736246786659,0.8156,3662.8,3662.2,5.05580184]
[1736246788854,0.8156,3662.8,3662.2,2.32521184]
[1736246790059,0.8156,3662.8,3662.2,1.14411823]
[1736246791461,0.8156,3662.8,3662.1,3.87478823]
[1736246792334,0.8034,3662.7,3662.1,3.87478823]
[1736246792753,1.75088616,3662.7,3662.1,3.87478823]
[1736246793263,1.75088616,3662.7,3662.1,1.14411823]
[1736246793755,0.8034,3662.7,3662.1,1.14411823]
[1736246800180,0.94747248,3662.6,3662.0,5.05595184]
[1736246801912,1.94624166,3662.7,3662.0,3.91183361]
[1736246804097,1.94624166,3662.7,3662.0,1.18109361]
[1736246804300,0.94734564,3662.6,3662.0,1.18109361]
[1736246805707,1.94624166,3662.7,3662.0,1.18109361]
[1736246806116,1.94624166,3662.7,3662.0,3.91183361]
[1736246808118,0.94731336,3662.6,3662.0,3.91183361]
[1736246808326,0.94731336,3662.6,3662.0,1.18109361]
[1736246809372,1.94624166,3662.7,3662.0,1.18109361]
[1736246812187,0.94729141,3662.6,3662.0,1.18109361]
[1736246813407,1.94624166,3662.7,3662.0,1.18109361]
[1736246813612,1.94624166,3662.7,3662.0,3.91182361]
[1736246813976,1.94624166,3662.7,3662.0,1.18109361]
[1736246814714,0.8034,3662.7,3662.0,2.32521184]
[1736246815088,4.17226148,3662.7,3662.0,1.14411823]
[1736246815979,3.51157388,3662.6,3661.8,2.8757387]
[1736246817408,2.36873222,3662.5,3661.8,2.8757387]
[1736246818618,0.94749289,3662.4,3661.8,2.8757387]
[1736246820021,1.14284166,3662.6,3661.8,2.8757387]
[1736246822276,2.36895728,3662.5,3661.8,2.8757387]
[1736246822819,3.24091262,3662.5,3661.8,1.14411823]
[1736246823020,0.8241,3662.4,3661.8,1.14411823]
[1736246823725,3.19305728,3662.4,3661.8,1.14411823]
[1736246824618,3.19305728,3662.4,3661.7,4.18109361]
[1736246824619,0.94758291,3662.3,3661.7,5.32521184]
[1736246826023,1.96694166,3662.4,3661.7,5.32521184]
[1736246826223,2.75870383,3662.4,3661.7,5.32521184]
[1736246828728,0.94745979,3662.3,3661.7,5.32521184]
[1736246830119,1.61586217,3662.4,3661.7,5.32521184]
[1736246831424,1.61586217,3662.4,3661.7,4.18109361]
[1736246832629,0.94741683,3662.3,3661.7,5.32521184]
[1736246833630,0.8241,3662.4,3661.7,5.32521184]
[1736246835202,0.8241,3662.4,3661.7,4.18109361]
[1736246836789,0.9475062,3662.3,3661.7,5.32521184]
[1736246838224,1.96694166,3662.4,3661.7,5.32521184]
[1736246838736,1.96694166,3662.4,3661.7,8.05617184]
[1736246839297,0.8241,3662.4,3661.7,8.05617184]
[1736246840335,0.8241,3662.4,3661.8,1.14411823]
[1736246845758,0.94779014,3662.3,3661.8,1.14411823]
[1736246846517,0.94779014,3662.3,3661.8,3.87499823]
[1736246846717,1.14284166,3662.5,3661.8,3.87499823]
[1736246847119,1.14284166,3662.5,3661.9,1.18109361]
[1736246847660,2.07574838,3662.5,3661.9,1.18109361]
[1736246848515,2.3696659,3662.4,3661.9,1.18109361]
[1736246848943,2.3696659,3662.4,3662.3,1.18109361]
[1736246849259,2.3696659,3662.4,3662.3,1.98789361]
[1736246849614,1.14284166,3662.4,3662.3,1.98789361]
[1736246851060,1.14284166,3662.8,3662.3,1.98789361]
[1736246851717,0.94769045,3662.7,3662.3,1.98789361]
[1736246853454,0.94769045,3662.6,3662.4,0.7792]
[1736246854755,1.14284166,3662.7,3662.4,0.7792]
[1736246854921,0.65303353,3662.6,3662.1,0.8023]
[1736246855324,3.38336353,3662.6,3662.0,1.14411823]
[1736246855759,2.73039,3662.5,3662.0,1.14411823]
[1736246856161,3.87323166,3662.5,3661.8,0.8023]
[1736246856325,4.52457754,3662.5,3661.8,0.8023]
[1736246856867,0.7601,3662.4,3661.8,0.8023]
[1736246857062,5.05446527,3662.3,3661.6,1.14411823]
[1736246857359,3.78510558,3662.2,3661.6,1.14411823]
[1736246857665,0.8134,3662.1,3661.6,1.14411823]
[1736246858534,4.32556317,3662.1,3661.5,0.8023]
[1736246860359,0.94775179,3662.0,3661.5,0.8023]
[1736246860566,0.94775179,3662.0,3661.3,3.62707779]
[1736246861242,0.94775179,3662.0,3661.3,3.08271184]
[1736246861881,3.54409,3662.1,3661.3,3.08271184]
[1736246862581,4.30186484,3662.1,3661.3,1.90161823]
[1736246863290,2.56381871,3662.0,3661.3,0.7575]
[1736246864186,5.29462871,3662.0,3661.3,0.7575]
[1736246864492,2.56381871,3662.0,3661.3,0.7575]
[1736246864881,2.36816753,3661.9,3661.3,0.7575]
[1736246866385,1.14284166,3662.0,3661.3,0.7575]
[1736246867362,2.48183953,3662.0,3661.3,0.7575]
[1736246868663,0.94681762,3661.9,3661.3,0.7575]
[1736246871104,1.06151842,3662.0,3661.3,0.7575]
[1736246885531,2.73082,3661.9,3661.3,0.7575]
[1736246886823,1.99449361,3662.1,3661.3,0.7575]
[1736246886824,1.18109361,3661.7,3661.3,0.7575]
[1736246887023,2.73105,3661.6,3661.3,0.7575]
[1736246887356,2.73105,3661.6,3660.8,0.7724]
[1736246890154,2.73105,3661.6,3660.8,1.95349361]
[1736246891358,3.23654853,3661.6,3660.8,1.95349361]
[1736246891727,3.23654853,3661.6,3660.8,1.98080731]
[1736246892351,3.23654853,3661.6,3660.8,1.95349361]
[1736246895116,3.23654853,3661.6,3660.9,0.803]